{"text_format":"1","workbook":"xlsx","n_sheets":1,"sheets":["invoice"],"not_rendered":{"charts":0,"images":0,"macros":1,"external_links":3,"defined_names":8,"comments":0,"pivot_tables":0},"unopened":[],"bounds":{"document_bytes":16777216,"sheet_cells":100000,"rows_first":2000,"rows_last":500,"rows_between":2000,"halvings":0,"cell_chars":16384,"cell_head_chars":4096},"cells_cut":0,"cells_raw":0,"read":"whole","date_system":"1900"}

{"sheet":"invoice","index":0,"n_rows":16,"n_cols":109,"rows_kept":16,"cut":false,"hidden":false,"merged":[[13,85,13,90],[13,92,13,104],[13,4,13,9],[13,11,13,23],[13,31,13,36],[13,38,13,50],[13,58,13,63],[13,65,13,77],[9,88,9,94],[10,1,10,2],[10,3,10,33],[10,34,10,40],[10,55,10,56],[10,57,10,87],[10,88,10,94],[7,88,7,94],[7,95,8,99],[7,100,8,104],[8,34,8,40],[8,88,8,94],[9,1,9,2],[9,3,9,33],[9,34,9,40],[9,55,9,56],[9,57,9,87],[3,28,3,32],[3,82,3,86],[7,1,8,2],[7,3,8,33],[7,34,7,40],[7,41,8,45],[7,46,8,50],[7,55,8,56],[7,57,8,87],[1,35,1,36],[1,40,1,41],[1,89,1,90],[1,94,1,95],[2,28,2,32],[2,82,2,86]]}
[{"$f":"SUBSTITUTE(SUBSTITUTE(\"Нак_\"&AC3&\" \"&AY2&AS13,\".\",\"_\"),\" \",\"_\")","v":"Нак__27_Ноя_2019_г_0"},null,null,null,null,null,null,null,null,null,null,null,null,null,null,null,null,null,null,null,null,null,null,null,null,null,null,null,null,null,null,null,null,null,null,null,null,null,null,null,null,null,null,null,null,null,null,null,null,null,null,null,null,null,null,{"$f":"B1","v":0}]
[null,null,null,null,null,null,null,null,null,null,null,null,null,null,null,null,null,null,null,null,null,null,null,null,null,null,null,null,null,null,null,null,null,null,null,null,null,null,null,null,null,null,null,null,null,null,null,null,null,null,"27.Ноя.2019 г.",null,null,null,null,null,null,null,null,null,null,null,null,null,null,null,null,null,null,null,null,null,null,null,null,null,null,null,null,null,null,null,null,null,null,null,null,null,null,null,null,null,null,null,null,null,null,null,null,null,null,null,null,null,{"$f":"AY2","v":"27.Ноя.2019 г."}]
[null,null,null,null,null,null,null,null,null,null,null,null,null,null,null,null,null,null,null,"НАКЛАДНАЯ №",null,null,null,null,null,null,null,null,null,null,null,null,null,null,null,null,null,null,null,null,null,null,null,null,null,null,null,null,null,null,null,null,null,null,null,null,null,null,null,null,null,null,null,null,null,null,null,null,null,null,null,null,null,"НАКЛАДНАЯ №",null,null,null,null,null,null,null,null,{"$f":"AC3","v":0}]
[]
[null,"Кому",null,null,null,null,null,null,null,null,null,null,null,null,null,null,null,null,null,null,null,null,null,null,null,null,null,null,null,null,null,null,null,null,null,null,null,null,null,null,null,null,null,null,null,null,null,null,null,null,null,null,null,null,null,"Кому",null,null,null,{"$f":"F5","v":0}]
[null,"От кого",null,null,null,null,null,null,null,null,null,null,null,null,null,null,null,null,null,null,null,null,null,null,null,null,null,null,null,null,null,null,null,null,null,null,null,null,null,null,null,null,null,null,null,null,null,null,null,null,null,null,null,null,null,"От кого",null,null,null,null,{"$f":"G6","v":0}]
[]
[null,"ГР",null,"НАИМЕНОВАНИЕ | Доп.информация | Артикул | Инв.номер",null,null,null,null,null,null,null,null,null,null,null,null,null,null,null,null,null,null,null,null,null,null,null,null,null,null,null,null,null,null,"Кол-во",null,null,null,null,null,null,"Цена",null,null,null,null,"Сумма",null,null,null,null,null,null,null,null,"ГР",null,"НАИМЕНОВАНИЕ | Доп.информация | Артикул | Инв.номер",null,null,null,null,null,null,null,null,null,null,null,null,null,null,null,null,null,null,null,null,null,null,null,null,null,null,null,null,null,null,"Кол-во",null,null,null,null,null,null,"Цена",null,null,null,null,"Сумма",null,null,null,null,null,null,"Загружаемые данные в листбокс обозначена красным"]
[null,null,null,null,null,null,null,null,null,null,null,null,null,null,null,null,null,null,null,null,null,null,null,null,null,null,null,null,null,null,null,null,null,null,"Ед. измер.",null,null,null,null,null,null,null,null,null,null,null,null,null,null,null,null,null,null,null,null,null,null,null,null,null,null,null,null,null,null,null,null,null,null,null,null,null,null,null,null,null,null,null,null,null,null,null,null,null,null,null,null,null,"Ед. измер."]
[null,{"$f":"DC10","v":"01."},null,{"$f":"DD10","v":"Жидкость AdBlue-SCR"},null,null,null,null,null,null,null,null,null,null,null,null,null,null,null,null,null,null,null,null,null,null,null,null,null,null,null,null,null,null,{"$f":"DE10","v":"10 л."},null,null,null,null,null,null,null,null,null,null,null,null,null,null,null,null,null,null,null,null,{"$f":"B10","v":"01."},null,{"$f":"D10","v":"Жидкость AdBlue-SCR"},null,null,null,null,null,null,null,null,null,null,null,null,null,null,null,null,null,null,null,null,null,null,null,null,null,null,null,null,null,null,{"$f":"AI10","v":"10 л."},null,null,null,null,null,null,null,null,null,null,null,null,null,null,null,null,null,"01.","Жидкость AdBlue-SCR","10 л."]
[null,"01.",null,"Тормозная жидкость DOT-4",null,null,null,null,null,null,null,null,null,null,null,null,null,null,null,null,null,null,null,null,null,null,null,null,null,null,null,null,null,null,"10 кг.",null,null,null,null,null,null,null,null,null,null,null,null,null,null,null,null,null,null,null,null,"01.",null,"Тормозная жидкость DOT-4",null,null,null,null,null,null,null,null,null,null,null,null,null,null,null,null,null,null,null,null,null,null,null,null,null,null,null,null,null,null,"10 кг.",null,null,null,null,null,null,null,null,null,null,null,null,null,null,null,null,null,"01.","Тормозная жидкость DOT-4","10 кг."]
[]
[null,"Сдал:",null,null,null,null,null,null,null,null,null,null,null,null,null,null,null,{"$f":"A2","v":0},null,null,null,null,null,null,null,null,"  Принял:",null,null,null,null,null,null,null,null,null,null,null,null,null,null,null,null,null,{"$f":"A3","v":0},null,null,null,null,null,null,null,null,null,null,"Сдал:",null,null,null,null,null,null,null,null,null,null,null,null,null,null,null,{"$f":"R13","v":0},null,null,null,null,null,null,null,null,"  Принял:",null,null,null,null,null,null,null,null,null,null,null,null,null,null,null,null,null,{"$f":"AS13","v":0}]
[null,null,null,null,"подпись",null,null,null,null,null,null,"расшифровка подписи",null,null,null,null,null,null,null,null,null,null,null,null,null,null,null,null,null,null,null,"подпись",null,null,null,null,null,null,"расшифровка подписи",null,null,null,null,null,null,null,null,null,null,null,null,null,null,null,null,null,null,null,"подпись",null,null,null,null,null,null,"расшифровка подписи",null,null,null,null,null,null,null,null,null,null,null,null,null,null,null,null,null,null,null,"подпись",null,null,null,null,null,null,"расшифровка подписи"]
[]
[null,"Координата (Сдал:) обозначена красным"]